[Event "*** Qualifier 2: Titled Tuesday 3|2 Blitz"]
[Site "Chess.com"]
[Date "2017.04.11"]
[Round "3"]
[White "feigelag"]
[Black "talaicito"]
[Result "1-0"]
[WhiteElo "2164"]
[BlackElo "2046"]
[TimeControl "180+2"]
[EndTime "13:35:43 PDT"]
[Termination "feigelag won on time"]

1. d4 {[%clk 0:03:02]} 1... e6 {[%clk 0:02:59.2]} 2. c4 {[%clk 0:03:02.1]} 2...
f5 {[%clk 0:03:00]} 3. g3 {[%clk 0:03:01.5]} 3... Nf6 {[%clk 0:03:01]} 4. Bg2
{[%clk 0:03:02.1]} 4... Be7 {[%clk 0:03:02.1]} 5. Nf3 {[%clk 0:03:01.4]} 5...
O-O {[%clk 0:03:02.2]} 6. O-O {[%clk 0:03:00.9]} 6... d6 {[%clk 0:03:03.7]} 7.
b4 {[%clk 0:02:59.8]} 7... a5 {[%clk 0:02:50.5]} 8. b5 {[%clk 0:02:57.2]} 8...
Nbd7 {[%clk 0:02:38.3]} 9. Bb2 {[%clk 0:02:53]} 9... Nb6 {[%clk 0:02:38.2]} 10.
Nbd2 {[%clk 0:02:51.9]} 10... a4 {[%clk 0:02:33.8]} 11. Rc1 {[%clk 0:02:44.7]}
11... a3 {[%clk 0:02:19]} 12. Ba1 {[%clk 0:02:45.3]} 12... Ne4 {[%clk
0:02:19.7]} 13. Qc2 {[%clk 0:02:44.6]} 13... d5 {[%clk 0:02:09.3]} 14. c5 {[%clk
0:02:43.9]} 14... Na4 {[%clk 0:02:08.5]} 15. Ne5 {[%clk 0:02:36.7]} 15... Bd7
{[%clk 0:01:51.9]} 16. Rb1 {[%clk 0:02:30.3]} 16... Bf6 {[%clk 0:01:35.9]} 17.
Ndf3 {[%clk 0:02:26.3]} 17... g5 {[%clk 0:01:29]} 18. Nd3 {[%clk 0:02:17.9]}
18... Ra5 {[%clk 0:00:49]} 19. Nfe5 {[%clk 0:02:10]} 19... Be8 {[%clk
0:00:46.4]} 20. f3 {[%clk 0:02:07.1]} 20... Bxe5 {[%clk 0:00:37.3]} 21. dxe5
{[%clk 0:02:04.4]} 21... Rxb5 {[%clk 0:00:19.5]} 22. Rxb5 {[%clk 0:02:00.6]}
22... Bxb5 {[%clk 0:00:20.1]} 23. fxe4 {[%clk 0:02:00.8]} 23... dxe4 {[%clk
0:00:20.6]} 24. Nb4 {[%clk 0:01:47.5]} 24... c6 {[%clk 0:00:21.1]} 25. Rd1
{[%clk 0:01:47.2]} 25... Qe7 {[%clk 0:00:16.6]} 26. Rd6 {[%clk 0:01:45.3]} 26...
Re8 {[%clk 0:00:05.7]} 27. Bd4 {[%clk 0:01:45.3]} 27... Qc7 {[%clk 0:00:05.7]}
28. Qb3 {[%clk 0:01:39]} 28... Kf7 {[%clk 0:00:05.6]} 29. Bh3 {[%clk 0:01:28.4]}
29... g4 {[%clk 0:00:06.3]} 30. Bf1 {[%clk 0:01:26.8]} 30... Re7 {[%clk
0:00:07.8]} 31. Qxa3 {[%clk 0:01:22]} 31... Qa5 {[%clk 0:00:07.9]} 32. Qb3
{[%clk 0:01:15.3]} 32... Ba6 {[%clk 0:00:07.5]} 33. Nxa6 {[%clk 0:01:07.7]}
33... bxa6 {[%clk 0:00:04.1]} 34. Rxc6 {[%clk 0:01:06]} 1-0

[Event "*** Qualifier 2: Titled Tuesday 3|2 Blitz"]
[Site "Chess.com"]
[Date "2017.04.11"]
[Round "3"]
[White "GrigorGrigorov"]
[Black "GM_Splinter"]
[Result "1-0"]
[WhiteElo "2499"]
[BlackElo "2343"]
[TimeControl "180+2"]
[EndTime "13:35:44 PDT"]
[Termination "GrigorGrigorov won by resignation"]

1. d4 {[%clk 0:03:02]} 1... f5 {[%clk 0:03:00.4]} 2. g3 {[%clk 0:03:01.9]} 2...
Nf6 {[%clk 0:03:00.8]} 3. Bg2 {[%clk 0:03:03.3]} 3... g6 {[%clk 0:03:02.1]} 4.
Nf3 {[%clk 0:03:04.5]} 4... Bg7 {[%clk 0:03:03.7]} 5. O-O {[%clk 0:03:05.8]}
5... O-O {[%clk 0:03:05.3]} 6. Nbd2 {[%clk 0:03:07]} 6... d6 {[%clk 0:02:58.8]}
7. Re1 {[%clk 0:03:07.8]} 7... Qe8 {[%clk 0:02:51.2]} 8. e4 {[%clk 0:03:08.3]}
8... e5 {[%clk 0:02:52.4]} 9. dxe5 {[%clk 0:03:05.1]} 9... dxe5 {[%clk
0:02:25.4]} 10. exf5 {[%clk 0:03:04.5]} 10... Nc6 {[%clk 0:02:24.9]} 11. fxg6
{[%clk 0:03:02.3]} 11... hxg6 {[%clk 0:02:26]} 12. c3 {[%clk 0:02:59.9]} 12...
Bf5 {[%clk 0:02:21.4]} 13. Ng5 {[%clk 0:02:58.8]} 13... Kh8 {[%clk 0:02:09.6]}
14. Nde4 {[%clk 0:02:57.1]} 14... Rd8 {[%clk 0:02:08.4]} 15. Qb3 {[%clk
0:02:53.3]} 15... Na5 {[%clk 0:02:01.1]} 16. Qb4 {[%clk 0:02:48.8]} 16... b6
{[%clk 0:02:02.1]} 17. Nxf6 {[%clk 0:02:44.9]} 17... Rxf6 {[%clk 0:02:02.8]} 18.
Qh4+ {[%clk 0:02:43.6]} 18... Kg8 {[%clk 0:02:04.1]} 19. Qh7+ {[%clk 0:02:39]}
19... Kf8 {[%clk 0:02:05.2]} 20. Ne4 {[%clk 0:02:36.8]} 20... Bxe4 {[%clk
0:01:53.9]} 21. Bxe4 {[%clk 0:02:34.9]} 21... Rdd6 {[%clk 0:01:28.4]} 22. Bg5
{[%clk 0:02:30.4]} 22... Rfe6 {[%clk 0:01:29.7]} 23. Re3 {[%clk 0:02:27.9]}
23... Qf7 {[%clk 0:01:13.5]} 24. Rf3 {[%clk 0:02:11.3]} 24... Bf6 {[%clk
0:01:14.6]} 25. Qh6+ {[%clk 0:01:34.4]} 25... Qg7 {[%clk 0:01:14.4]} 26. Bxg6
{[%clk 0:01:16.8]} 26... Qxh6 {[%clk 0:01:11.9]} 27. Bxh6+ {[%clk 0:01:17.2]}
27... Ke7 {[%clk 0:01:13.5]} 28. Be4 {[%clk 0:01:08.4]} 28... Bh8 {[%clk
0:01:02.5]} 29. Bf8+ {[%clk 0:01:07.6]} 29... Ke8 {[%clk 0:01:01.3]} 30. Bxd6
{[%clk 0:01:06.9]} 30... Rxd6 {[%clk 0:01:02.5]} 31. Rd3 {[%clk 0:01:05.2]}
31... Nc4 {[%clk 0:01:03.6]} 32. b3 {[%clk 0:01:01.4]} 32... Nd2 {[%clk
0:01:03.2]} 33. Rxd6 {[%clk 0:00:58.4]} 33... cxd6 {[%clk 0:01:05.1]} 34. Bd5
{[%clk 0:00:59]} 34... e4 {[%clk 0:01:03.7]} 35. Rc1 {[%clk 0:00:52.9]} 35...
Ke7 {[%clk 0:00:56.2]} 36. Kg2 {[%clk 0:00:45.6]} 36... Kf6 {[%clk 0:00:53.5]}
37. Rd1 {[%clk 0:00:45.8]} 1-0

[Event "*** Qualifier 2: Titled Tuesday 3|2 Blitz"]
[Site "Chess.com"]
[Date "2017.04.11"]
[Round "3"]
[White "Entilza"]
[Black "Winehouse83"]
[Result "0-1"]
[WhiteElo "2171"]
[BlackElo "2317"]
[TimeControl "180+2"]
[EndTime "13:35:45 PDT"]
[Termination "Winehouse83 won by resignation"]

1. d4 {[%clk 0:03:02]} 1... Nf6 {[%clk 0:02:56]} 2. c4 {[%clk 0:03:01.3]} 2...
g6 {[%clk 0:02:56.1]} 3. Nc3 {[%clk 0:03:01.7]} 3... Bg7 {[%clk 0:02:55.9]} 4.
e4 {[%clk 0:03:02.4]} 4... d6 {[%clk 0:02:57.5]} 5. Nf3 {[%clk 0:03:02.8]} 5...
O-O {[%clk 0:02:58.2]} 6. Be2 {[%clk 0:03:04.2]} 6... e5 {[%clk 0:02:58.9]} 7.
O-O {[%clk 0:03:04.9]} 7... Nc6 {[%clk 0:02:59.7]} 8. d5 {[%clk 0:03:05.7]} 8...
Ne7 {[%clk 0:03:00.4]} 9. Ne1 {[%clk 0:03:06.3]} 9... Ne8 {[%clk 0:02:49.3]} 10.
Nd3 {[%clk 0:03:05.5]} 10... f5 {[%clk 0:02:49.4]} 11. f4 {[%clk 0:03:06.9]}
11... exf4 {[%clk 0:02:42.2]} 12. Bxf4 {[%clk 0:03:08.8]} 12... fxe4 {[%clk
0:02:33.7]} 13. Nxe4 {[%clk 0:03:10.7]} 13... Nf5 {[%clk 0:02:33.5]} 14. Qd2
{[%clk 0:03:07]} 14... Nd4 {[%clk 0:02:18]} 15. Ng5 {[%clk 0:02:53.9]} 15... Nf6
{[%clk 0:02:00.3]} 16. Rae1 {[%clk 0:02:31.6]} 16... h6 {[%clk 0:01:59.1]} 17.
Ne6 {[%clk 0:02:28.8]} 17... Nxe6 {[%clk 0:01:57.2]} 18. dxe6 {[%clk 0:02:27.7]}
18... Bxe6 {[%clk 0:01:57.7]} 19. Bxh6 {[%clk 0:02:21.4]} 19... Bxc4 {[%clk
0:01:57]} 20. Bxg7 {[%clk 0:02:16.7]} 20... Kxg7 {[%clk 0:01:58.9]} 21. Nf4
{[%clk 0:02:11]} 21... Bf7 {[%clk 0:01:49.1]} 22. Bf3 {[%clk 0:02:09.6]} 22...
c6 {[%clk 0:01:39.5]} 23. Ne6+ {[%clk 0:02:07.7]} 23... Bxe6 {[%clk 0:01:39.5]}
24. Rxe6 {[%clk 0:02:09.6]} 24... d5 {[%clk 0:01:39.2]} 25. Rfe1 {[%clk
0:02:06]} 25... Qb6+ {[%clk 0:01:34.1]} 26. Kh1 {[%clk 0:02:04.2]} 26... Rae8
{[%clk 0:01:35.4]} 27. Re7+ {[%clk 0:01:52.6]} 27... Rxe7 {[%clk 0:01:34.8]} 28.
Rxe7+ {[%clk 0:01:53.7]} 28... Rf7 {[%clk 0:01:36.2]} 29. Rxf7+ {[%clk
0:01:49.2]} 29... Kxf7 {[%clk 0:01:36.6]} 30. g4 {[%clk 0:01:49.9]} 30... Qa6
{[%clk 0:01:26.1]} 31. Kg2 {[%clk 0:01:45]} 31... Qxa2 {[%clk 0:01:01.1]} 32. g5
{[%clk 0:01:45.2]} 32... Nd7 {[%clk 0:00:58.8]} 33. Bg4 {[%clk 0:01:36.4]} 33...
Ke7 {[%clk 0:00:50.9]} 34. Qe3+ {[%clk 0:01:20.7]} 34... Kd8 {[%clk 0:00:51]}
35. Qe6 {[%clk 0:01:16.3]} 35... Qxb2+ {[%clk 0:00:51.2]} 36. Kh1 {[%clk
0:01:10.6]} 36... Qc1+ {[%clk 0:00:48.3]} 37. Kg2 {[%clk 0:01:10.2]} 37... Qd2+
{[%clk 0:00:45.7]} 38. Kg1 {[%clk 0:01:09.2]} 38... Qd4+ {[%clk 0:00:43.7]} 39.
Kg2 {[%clk 0:01:09.4]} 39... Qe4+ {[%clk 0:00:43.5]} 40. Qxe4 {[%clk 0:01:09.1]}
40... dxe4 {[%clk 0:00:45.4]} 41. h4 {[%clk 0:01:08.9]} 41... Ne5 {[%clk
0:00:44]} 0-1

[Event "*** Qualifier 2: Titled Tuesday 3|2 Blitz"]
[Site "Chess.com"]
[Date "2017.04.11"]
[Round "3"]
[White "Gabix_94"]
[Black "igorkovalenko"]
[Result "1/2-1/2"]
[WhiteElo "2518"]
[BlackElo "2652"]
[TimeControl "180+2"]
[EndTime "13:35:48 PDT"]
[Termination "Game drawn by repetition"]

1. e4 {[%clk 0:03:02]} 1... c6 {[%clk 0:03:00.5]} 2. d4 {[%clk 0:03:02.9]} 2...
d5 {[%clk 0:03:02]} 3. Nd2 {[%clk 0:03:04.2]} 3... dxe4 {[%clk 0:03:02.9]} 4.
Nxe4 {[%clk 0:03:06.1]} 4... Nd7 {[%clk 0:03:04.7]} 5. Ng5 {[%clk 0:03:06.6]}
5... Ngf6 {[%clk 0:03:04.2]} 6. Bd3 {[%clk 0:03:07.8]} 6... e6 {[%clk
0:03:05.4]} 7. N1f3 {[%clk 0:03:09.1]} 7... Bd6 {[%clk 0:03:05.5]} 8. Qe2 {[%clk
0:03:10.6]} 8... h6 {[%clk 0:02:58]} 9. Ne4 {[%clk 0:03:11.5]} 9... Nxe4 {[%clk
0:02:58.2]} 10. Qxe4 {[%clk 0:03:13.4]} 10... Nf6 {[%clk 0:02:53.2]} 11. Qe2
{[%clk 0:03:14.4]} 11... Qc7 {[%clk 0:02:54.4]} 12. Bd2 {[%clk 0:03:15.7]} 12...
b6 {[%clk 0:02:55.7]} 13. Ne5 {[%clk 0:03:16.8]} 13... Bb7 {[%clk 0:02:57]} 14.
O-O-O {[%clk 0:03:18]} 14... O-O-O {[%clk 0:02:58.2]} 15. Rhe1 {[%clk
0:03:18.8]} 15... Kb8 {[%clk 0:02:57.2]} 16. f4 {[%clk 0:03:17]} 16... Rhe8
{[%clk 0:02:57.5]} 17. Kb1 {[%clk 0:03:18]} 17... c5 {[%clk 0:02:58.1]} 18. Bb5
{[%clk 0:03:16.9]} 18... Rf8 {[%clk 0:02:57.3]} 19. dxc5 {[%clk 0:03:16.8]}
19... Bxc5 {[%clk 0:02:58.4]} 20. g3 {[%clk 0:03:11.2]} 20... Nd5 {[%clk
0:02:54.1]} 21. a3 {[%clk 0:03:00]} 21... Bd4 {[%clk 0:02:43]} 22. c3 {[%clk
0:02:57.3]} 22... Bxe5 {[%clk 0:02:38.3]} 23. Qxe5 {[%clk 0:02:56.6]} 23... Qxe5
{[%clk 0:02:39.4]} 24. Rxe5 {[%clk 0:02:57.2]} 24... Rd6 {[%clk 0:02:28.7]} 25.
Kc1 {[%clk 0:02:27.2]} 25... Rfd8 {[%clk 0:02:29.2]} 26. Ree1 {[%clk 0:02:21.5]}
26... Nf6 {[%clk 0:02:22.5]} 27. Be3 {[%clk 0:02:18.3]} 27... Rxd1+ {[%clk
0:02:02]} 28. Rxd1 {[%clk 0:02:17.9]} 28... Rxd1+ {[%clk 0:02:03.6]} 29. Kxd1
{[%clk 0:02:19.8]} 29... Bf3+ {[%clk 0:01:52]} 30. Ke1 {[%clk 0:02:19.3]} 30...
Ng4 {[%clk 0:01:44.1]} 31. Bd4 {[%clk 0:02:15.2]} 31... Nxh2 {[%clk 0:01:23.9]}
32. Bxg7 {[%clk 0:02:14.6]} 32... h5 {[%clk 0:01:22.9]} 33. Be8 {[%clk
0:02:13.9]} 33... f5 {[%clk 0:01:16]} 34. Bf7 {[%clk 0:02:10.6]} 34... Bg4
{[%clk 0:01:15]} 35. Bxe6 {[%clk 0:02:09.1]} 35... Kc7 {[%clk 0:01:04.4]} 36.
Be5+ {[%clk 0:02:10]} 36... Kc6 {[%clk 0:01:05.4]} 37. Kf2 {[%clk 0:02:09.9]}
37... Nf3 {[%clk 0:01:04.9]} 38. c4 {[%clk 0:02:02.9]} 38... Nd2 {[%clk
0:00:50.3]} 39. Bd5+ {[%clk 0:02:03.7]} 39... Kd7 {[%clk 0:00:50.9]} 40. b4
{[%clk 0:01:49.4]} 40... Ne4+ {[%clk 0:00:49]} 41. Kg2 {[%clk 0:01:49.4]} 41...
Kc8 {[%clk 0:00:27.8]} 42. Be6+ {[%clk 0:01:41.8]} 42... Kb7 {[%clk 0:00:28.5]}
43. Bd5+ {[%clk 0:01:43]} 43... Kc8 {[%clk 0:00:29.7]} 44. Bc6 {[%clk
0:01:36.3]} 44... Be2 {[%clk 0:00:28.3]} 45. Bd5 {[%clk 0:01:31.7]} 45... Bg4
{[%clk 0:00:29.3]} 1/2-1/2

[Event "*** Qualifier 2: Titled Tuesday 3|2 Blitz"]
[Site "Chess.com"]
[Date "2017.04.11"]
[Round "3"]
[White "SmoothAsAHedgehog"]
[Black "Gabrielian_Artur"]
[Result "0-1"]
[WhiteElo "2520"]
[BlackElo "2620"]
[TimeControl "180+2"]
[EndTime "13:35:55 PDT"]
[Termination "Gabrielian_Artur won by resignation"]

1. Nf3 {[%clk 0:02:58.2]} 1... Nf6 {[%clk 0:03:00.3]} 2. c4 {[%clk 0:02:59.8]}
2... g6 {[%clk 0:03:00.8]} 3. g3 {[%clk 0:03:00.6]} 3... Bg7 {[%clk 0:03:01.6]}
4. Bg2 {[%clk 0:03:01.1]} 4... O-O {[%clk 0:03:02.6]} 5. O-O {[%clk 0:03:01.9]}
5... d5 {[%clk 0:03:03.5]} 6. cxd5 {[%clk 0:03:02.8]} 6... Nxd5 {[%clk 0:03:04]}
7. Nc3 {[%clk 0:03:04.4]} 7... Nc6 {[%clk 0:03:02.6]} 8. Qc2 {[%clk 0:02:34]}
8... Nb6 {[%clk 0:02:45.4]} 9. d3 {[%clk 0:02:34.1]} 9... e5 {[%clk 0:02:45.8]}
10. a3 {[%clk 0:02:26.2]} 10... Nd4 {[%clk 0:02:44.7]} 11. Nxd4 {[%clk
0:02:26.9]} 11... exd4 {[%clk 0:02:45.9]} 12. Ne4 {[%clk 0:02:28.5]} 12... h6
{[%clk 0:02:45.8]} 13. b4 {[%clk 0:02:27.5]} 13... Nd5 {[%clk 0:02:45.6]} 14.
Bb2 {[%clk 0:02:28.1]} 14... c6 {[%clk 0:02:46.2]} 15. Nc5 {[%clk 0:02:24.9]}
15... Re8 {[%clk 0:02:43.8]} 16. Rfe1 {[%clk 0:02:20.1]} 16... a5 {[%clk
0:02:44.1]} 17. Qb3 {[%clk 0:02:20.1]} 17... axb4 {[%clk 0:02:43.2]} 18. axb4
{[%clk 0:02:20.9]} 18... Rxa1 {[%clk 0:02:43.5]} 19. Bxa1 {[%clk 0:02:22.4]}
19... b6 {[%clk 0:02:33]} 20. Ne4 {[%clk 0:02:19.3]} 20... Be6 {[%clk 0:02:32]}
21. Qa4 {[%clk 0:01:51.3]} 21... f5 {[%clk 0:02:26.4]} 22. Nd2 {[%clk
0:01:51.1]} 22... b5 {[%clk 0:02:26.4]} 23. Qa3 {[%clk 0:01:29.6]} 23... Qd6
{[%clk 0:01:57.1]} 24. Rb1 {[%clk 0:00:42.6]} 24... Nc3 {[%clk 0:01:31.5]} 25.
Bxc3 {[%clk 0:00:27.2]} 25... dxc3 {[%clk 0:01:31.9]} 26. Nb3 {[%clk 0:00:20.7]}
26... Bf7 {[%clk 0:01:31]} 27. Bf3 {[%clk 0:00:19.2]} 27... g5 {[%clk
0:01:30.3]} 28. h3 {[%clk 0:00:17.1]} 28... h5 {[%clk 0:01:20.6]} 29. Nc5 {[%clk
0:00:17.9]} 29... g4 {[%clk 0:01:20.1]} 30. hxg4 {[%clk 0:00:19.2]} 30... hxg4
{[%clk 0:01:20.6]} 31. Bg2 {[%clk 0:00:18.4]} 31... Rxe2 {[%clk 0:01:15.7]} 32.
Rc1 {[%clk 0:00:17.5]} 32... Bd4 {[%clk 0:01:14.3]} 33. Qa8+ {[%clk 0:00:15.1]}
33... Kg7 {[%clk 0:01:14.5]} 34. Rf1 {[%clk 0:00:15.2]} 34... c2 {[%clk
0:01:11.4]} 35. Qa3 {[%clk 0:00:13.7]} 35... Qxg3 {[%clk 0:01:08.8]} 36. Ne4
{[%clk 0:00:12.8]} 36... fxe4 {[%clk 0:01:08.8]} 0-1

[Event "*** Qualifier 2: Titled Tuesday 3|2 Blitz"]
[Site "Chess.com"]
[Date "2017.04.11"]
[Round "3"]
[White "Vamostodorecto"]
[Black "ruvat"]
[Result "1-0"]
[WhiteElo "2340"]
[BlackElo "2206"]
[TimeControl "180+2"]
[EndTime "13:35:57 PDT"]
[Termination "Vamostodorecto won on time"]

1. d4 {[%clk 0:03:02]} 1... d6 {[%clk 0:03:00.4]} 2. c4 {[%clk 0:02:59]} 2... e5
{[%clk 0:03:00.5]} 3. Nf3 {[%clk 0:03:00]} 3... e4 {[%clk 0:03:00.7]} 4. Ng5
{[%clk 0:03:00.8]} 4... Nf6 {[%clk 0:03:01.5]} 5. Nc3 {[%clk 0:02:59.4]} 5...
Qe7 {[%clk 0:03:02.2]} 6. g3 {[%clk 0:02:48.2]} 6... h6 {[%clk 0:03:01.7]} 7.
Nh3 {[%clk 0:02:48.2]} 7... g6 {[%clk 0:03:03.3]} 8. Bg2 {[%clk 0:02:47.4]} 8...
Bg7 {[%clk 0:03:03.4]} 9. Nf4 {[%clk 0:02:46.6]} 9... c6 {[%clk 0:03:03.7]} 10.
e3 {[%clk 0:02:34.3]} 10... Bf5 {[%clk 0:02:56.4]} 11. O-O {[%clk 0:02:22.2]}
11... Na6 {[%clk 0:02:42.9]} 12. a3 {[%clk 0:02:20.7]} 12... Nc7 {[%clk
0:02:42.1]} 13. b4 {[%clk 0:02:21.2]} 13... O-O {[%clk 0:02:36.4]} 14. Bb2
{[%clk 0:02:20.7]} 14... d5 {[%clk 0:02:22.4]} 15. c5 {[%clk 0:02:17.9]} 15...
g5 {[%clk 0:02:08.7]} 16. Nfe2 {[%clk 0:02:05.9]} 16... Qd7 {[%clk 0:01:51.8]}
17. a4 {[%clk 0:02:05.1]} 17... a6 {[%clk 0:01:48.2]} 18. Qb3 {[%clk 0:02:00.2]}
18... Bg4 {[%clk 0:01:41.1]} 19. Rab1 {[%clk 0:01:47]} 19... Bf3 {[%clk
0:01:24.6]} 20. Ba1 {[%clk 0:01:37.2]} 20... Qg4 {[%clk 0:01:17.5]} 21. Qc2
{[%clk 0:01:33.6]} 21... Bxg2 {[%clk 0:01:07.2]} 22. Kxg2 {[%clk 0:01:32.2]}
22... Qf3+ {[%clk 0:00:50]} 23. Kg1 {[%clk 0:01:32.7]} 23... Ne6 {[%clk
0:00:50]} 24. Nc1 {[%clk 0:01:25.5]} 24... g4 {[%clk 0:00:48.4]} 25. b5 {[%clk
0:01:20.7]} 25... Ng5 {[%clk 0:00:48.6]} 26. Rd1 {[%clk 0:01:04]} 26... Nh3+
{[%clk 0:00:49.3]} 27. Kf1 {[%clk 0:01:04.6]} 27... Qh1+ {[%clk 0:00:50.3]} 28.
Ke2 {[%clk 0:01:05.1]} 28... Qxh2 {[%clk 0:00:49.6]} 29. Rf1 {[%clk 0:01:02]}
1-0

[Event "*** Qualifier 2: Titled Tuesday 3|2 Blitz"]
[Site "Chess.com"]
[Date "2017.04.11"]
[Round "3"]
[White "Sven_Tica"]
[Black "Rating-Schmating"]
[Result "0-1"]
[WhiteElo "2383"]
[BlackElo "2257"]
[TimeControl "180+2"]
[EndTime "13:36:01 PDT"]
[Termination "Rating-Schmating won on time"]

1. d4 {[%clk 0:03:01.9]} 1... Nf6 {[%clk 0:03:00.5]} 2. c4 {[%clk 0:03:03]} 2...
e6 {[%clk 0:03:01.4]} 3. g3 {[%clk 0:03:04.1]} 3... d5 {[%clk 0:03:00.6]} 4. Nf3
{[%clk 0:03:05.3]} 4... c5 {[%clk 0:03:00.8]} 5. cxd5 {[%clk 0:03:05.7]} 5...
Qxd5 {[%clk 0:03:01.1]} 6. Nc3 {[%clk 0:03:03.1]} 6... Qd8 {[%clk 0:03:00.5]} 7.
Bg2 {[%clk 0:03:04]} 7... Nc6 {[%clk 0:03:00.8]} 8. O-O {[%clk 0:02:43.1]} 8...
cxd4 {[%clk 0:03:00.3]} 9. Nb5 {[%clk 0:02:43.8]} 9... Bc5 {[%clk 0:03:01.3]}
10. Bf4 {[%clk 0:02:42.1]} 10... Nd5 {[%clk 0:03:02.1]} 11. Nfxd4 {[%clk
0:02:26.8]} 11... Nxd4 {[%clk 0:02:53]} 12. Bxd5 {[%clk 0:02:03.8]} 12... Nxb5
{[%clk 0:02:52.8]} 13. Bc4 {[%clk 0:02:04.4]} 13... Nd4 {[%clk 0:02:48.2]} 14.
e3 {[%clk 0:02:03.1]} 14... Nc6 {[%clk 0:02:48.7]} 15. Qh5 {[%clk 0:02:02]}
15... Qe7 {[%clk 0:02:37.3]} 16. Bg5 {[%clk 0:02:00.6]} 16... Qc7 {[%clk
0:02:31.4]} 17. Rfd1 {[%clk 0:02:01.5]} 17... Bd7 {[%clk 0:02:21.5]} 18. Rac1
{[%clk 0:02:01]} 18... Be7 {[%clk 0:02:20.8]} 19. Bf4 {[%clk 0:02:00]} 19... Qa5
{[%clk 0:02:15.2]} 20. Bb5 {[%clk 0:01:31.5]} 20... g6 {[%clk 0:02:07.3]} 21.
Qe2 {[%clk 0:01:28.8]} 21... a6 {[%clk 0:01:47.6]} 22. Bc4 {[%clk 0:01:26.7]}
22... Bf6 {[%clk 0:01:43.4]} 23. Bd6 {[%clk 0:01:15.3]} 23... Ne5 {[%clk
0:01:35.3]} 24. b4 {[%clk 0:01:11.4]} 24... Qb6 {[%clk 0:01:26.1]} 25. Bc5
{[%clk 0:01:10.4]} 25... Qc6 {[%clk 0:01:26.3]} 26. Bb3 {[%clk 0:01:11]} 26...
Nf3+ {[%clk 0:01:26.5]} 27. Kf1 {[%clk 0:01:12.2]} 27... Nxh2+ {[%clk
0:01:27.3]} 28. Ke1 {[%clk 0:01:13.6]} 28... Qf3 {[%clk 0:01:16.2]} 29. Rxd7
{[%clk 0:01:00.6]} 29... Qxe2+ {[%clk 0:01:12.3]} 30. Kxe2 {[%clk 0:01:02.5]}
30... Kxd7 {[%clk 0:01:13.8]} 31. Ba4+ {[%clk 0:01:00.7]} 31... b5 {[%clk
0:01:14.6]} 32. Rd1+ {[%clk 0:01:01.6]} 32... Kc7 {[%clk 0:01:14.8]} 33. Bc2
{[%clk 0:01:02.2]} 33... Rhd8 {[%clk 0:01:13.5]} 34. Rh1 {[%clk 0:01:02.9]}
34... Ng4 {[%clk 0:01:09.8]} 35. Rxh7 {[%clk 0:01:03.8]} 35... Rd7 {[%clk
0:01:09.6]} 36. f4 {[%clk 0:01:03.4]} 36... Rh8 {[%clk 0:01:03.4]} 0-1

[Event "*** Qualifier 2: Titled Tuesday 3|2 Blitz"]
[Site "Chess.com"]
[Date "2017.04.11"]
[Round "3"]
[White "GMMarcinDziuba"]
[Black "DagurR"]
[Result "1-0"]
[WhiteElo "2539"]
[BlackElo "2438"]
[TimeControl "180+2"]
[EndTime "13:36:07 PDT"]
[Termination "GMMarcinDziuba won by resignation"]

1. d4 {[%clk 0:03:02]} 1... f5 {[%clk 0:03:00.1]} 2. Nc3 {[%clk 0:02:58.4]} 2...
Nf6 {[%clk 0:02:59.1]} 3. Bg5 {[%clk 0:02:59.2]} 3... g6 {[%clk 0:02:55.4]} 4.
f3 {[%clk 0:02:52.4]} 4... d5 {[%clk 0:02:51.7]} 5. e4 {[%clk 0:02:50.2]} 5...
dxe4 {[%clk 0:02:48.7]} 6. fxe4 {[%clk 0:02:51.1]} 6... Bg7 {[%clk 0:02:50]} 7.
e5 {[%clk 0:02:48.2]} 7... Nd5 {[%clk 0:02:45.9]} 8. Nxd5 {[%clk 0:02:42.9]}
8... Qxd5 {[%clk 0:02:46.7]} 9. Ne2 {[%clk 0:02:39.2]} 9... Nc6 {[%clk
0:02:38.3]} 10. Qd2 {[%clk 0:02:23.2]} 10... h6 {[%clk 0:02:35.5]} 11. Be3
{[%clk 0:02:23.8]} 11... g5 {[%clk 0:02:29.9]} 12. Nc3 {[%clk 0:02:22.4]} 12...
Qa5 {[%clk 0:02:28.5]} 13. Bc4 {[%clk 0:02:21.6]} 13... f4 {[%clk 0:02:25.9]}
14. Bf2 {[%clk 0:02:22.6]} 14... Bf5 {[%clk 0:02:24.4]} 15. O-O {[%clk
0:01:46.5]} 15... O-O-O {[%clk 0:02:19.4]} 16. b4 {[%clk 0:01:35.9]} 16... Qa3
{[%clk 0:02:02.9]} 17. Rab1 {[%clk 0:01:29.7]} 17... Nxe5 {[%clk 0:01:46.8]} 18.
Bb5 {[%clk 0:01:18.9]} 18... Nc6 {[%clk 0:01:14.5]} 19. Rb3 {[%clk 0:00:50.6]}
19... Qxb3 {[%clk 0:01:15.6]} 20. axb3 {[%clk 0:00:46.1]} 20... Nxd4 {[%clk
0:01:17.1]} 21. Bd3 {[%clk 0:00:39.9]} 21... Bg4 {[%clk 0:01:07]} 22. h3 {[%clk
0:00:39]} 22... Bh5 {[%clk 0:01:03.5]} 23. Qe1 {[%clk 0:00:32.3]} 23... Bf7
{[%clk 0:00:49.1]} 24. Nb5 {[%clk 0:00:30.7]} 24... Nxb5 {[%clk 0:00:36.4]} 25.
Bxb5 {[%clk 0:00:31.8]} 25... e5 {[%clk 0:00:33.6]} 26. Bd3 {[%clk 0:00:32.2]}
26... Be6 {[%clk 0:00:29.2]} 27. Be4 {[%clk 0:00:33.3]} 27... Bd5 {[%clk
0:00:24.7]} 28. Bxd5 {[%clk 0:00:32.3]} 28... Rxd5 {[%clk 0:00:26.6]} 29. Qe4
{[%clk 0:00:32]} 29... Rhd8 {[%clk 0:00:27.9]} 30. c4 {[%clk 0:00:27.8]} 30...
Rd3 {[%clk 0:00:26.9]} 31. b5 {[%clk 0:00:29]} 31... Kb8 {[%clk 0:00:27.2]} 32.
Ra1 {[%clk 0:00:28.7]} 32... Rd1+ {[%clk 0:00:26.4]} 33. Rxd1 {[%clk 0:00:28.8]}
33... Rxd1+ {[%clk 0:00:28.3]} 34. Kh2 {[%clk 0:00:30.6]} 34... a6 {[%clk
0:00:27.6]} 35. Qg6 {[%clk 0:00:27.7]} 1-0